bitfinex/quotes_SOLUSD_20251013
["timestamp","ask_amount","ask_price","bid_price","bid_amount"]
[1760359071472,10.21114529,194.01,194.0,1.0]
[1760359071659,5.05677181,194.01,194.0,1.0]
[1760359071883,0.09911496,194.01,194.0,1.7]
[1760359072259,0.09911496,194.01,194.0,1.0]
[1760359072444,5.05677181,194.01,194.0,1.0]
[1760359073269,0.09911496,194.01,194.0,1.0]
[1760359073762,5.72677181,194.01,194.0,1.0]
[1760359073962,10.88114529,194.01,194.0,1.0]
[1760359074144,10.21114529,194.01,194.0,1.0]
[1760359074545,5.92348844,194.01,194.0,1.0]
[1760359074744,10.88114529,194.01,194.0,1.0]
[1760359075151,0.09911496,194.01,194.0,1.0]
[1760359077558,12.39885278,194.02,194.0,1.0]
[1760359077956,0.11336225,194.01,194.0,1.0]
[1760359078662,0.11336225,194.01,194.0,1.7]
[1760359079172,0.11336225,194.01,194.0,6.85463917]
[1760359079353,0.11336225,194.01,194.0,14.09937878]
[1760359079848,0.11336225,194.01,194.0,1.0]
[1760359080454,0.11336225,194.01,194.0,1.7]
[1760359080659,0.11336225,194.01,194.0,14.09937878]
[1760359081660,0.11336225,194.01,194.0,6.85463917]
[1760359081848,0.11336225,194.01,194.0,14.09937878]
[1760359082955,0.11336225,194.01,194.0,34.33585399]
[1760359083165,0.09558651,194.02,194.0,34.33585399]
[1760359083376,0.09558651,194.02,194.01,29.26017695]
[1760359083573,1e-08,194.02,194.01,40.13665216]
[1760359083855,0.09791795,194.05,194.02,31.67647521]
[1760359084050,0.09791795,194.05,194.04,7.24473961]
[1760359084457,0.09791795,194.05,194.04,13.09831619]
[1760359085270,0.09791795,194.05,194.04,22.45831619]
[1760359085672,0.09791795,194.05,194.04,13.09831619]
[1760359085874,0.10524292,194.1,194.05,79.10208205]
[1760359086050,0.10524292,194.1,194.05,87.56215276]
[1760359086480,0.10524292,194.1,194.05,102.07546376]
[1760359086859,0.10524292,194.1,194.05,92.71546376]
[1760359087079,0.10524292,194.1,194.05,102.07546376]
[1760359087463,0.10524292,194.1,194.05,92.71546376]
[1760359088289,0.10524292,194.1,194.05,102.07546376]
[1760359088784,0.10524292,194.1,194.05,245.45193897]
[1760359088960,0.10524292,194.1,194.07,7.24473961]
[1760359089156,0.10524292,194.1,194.08,10.87647521]
[1760359089462,0.10524292,194.1,194.08,17.81999105]
[1760359090183,0.10524292,194.1,194.08,0.51525144]
[1760359090360,8.01745908,194.09,194.05,20.8]
[1760359090560,8.01745908,194.09,194.02,18.03887713]
[1760359090561,0.67,194.08,194.02,25.79902752]
[1760359091185,7.91473961,194.08,194.02,25.79902752]
[1760359091389,7.24473961,194.07,194.02,5.6695186]
[1760359091576,7.24473961,194.05,194.0,1.51546391]
[1760359091879,7.91473961,194.04,194.0,6.15459948]
[1760359092269,0.67,194.03,194.0,6.15459948]
[1760359092477,7.24473961,194.04,194.0,6.15459948]
[1760359092662,7.93473961,194.03,194.0,1.0]
[1760359092865,7.24473961,194.01,194.0,1.0]
[1760359093064,7.93473961,194.01,194.0,1.0]
[1760359094166,7.24473961,194.03,194.0,1.0]
[1760359094367,7.24473961,194.04,194.0,1.0]
[1760359094583,0.69,194.07,194.01,1.21543734]
[1760359094787,0.69,194.07,194.02,7.24473961]
[1760359094992,0.69,194.06,194.01,0.51543734]
[1760359095170,7.24473961,194.05,194.01,0.51543734]
[1760359095371,7.93473961,194.05,194.01,0.51543734]
[1760359095588,7.93473961,194.05,194.0,6.15458148]
[1760359095589,7.24473961,194.05,194.0,6.15458148]
[1760359095781,7.93473961,194.05,194.0,6.15458148]
[1760359095978,0.69,194.05,194.0,13.39932109]
[1760359096570,0.69,194.05,194.0,13.914785]
[1760359096771,12.39783117,194.06,194.0,14.614785]
[1760359096972,0.69,194.05,194.0,14.614785]
[1760359097185,0.69,194.05,194.0,13.914785]
[1760359097496,7.93473961,194.04,194.0,1.0]
[1760359097882,0.1062132,194.01,194.0,1.0]
[1760359098477,8.04095281,194.01,194.0,1.0]
[1760359099295,0.1062132,194.01,194.0,1.0]
[1760359099474,7.35095281,194.01,194.0,1.0]
[1760359099677,13.19532629,194.01,194.0,1.0]
[1760359100800,33.99532629,194.01,194.0,1.0]
[1760359101275,44.8718015,194.01,194.0,1.0]
[1760359101602,44.8718015,194.01,193.89,1.21575635]
[1760359101603,36.95773521,194.01,193.89,0.51575635]
[1760359101790,7.24473961,193.93,193.89,0.51575635]
[1760359102184,7.24473961,193.93,193.89,1.21575635]
[1760359102508,7.35095281,194.01,193.93,18.04774917]
[1760359102695,7.24473961,194.0,193.94,7.76036299]
[1760359103082,7.24473961,193.99,193.94,0.51562338]
[1760359103286,7.24473961,193.97,193.92,5.15675688]
[1760359103599,7.24473961,193.95,193.91,0.51570316]
[1760359103801,0.69,193.96,193.91,0.51570316]
[1760359104100,7.24473961,193.94,193.89,5.15756356]
[1760359104610,7.24473961,193.91,193.87,0.51580956]
[1760359104779,7.24473961,193.91,193.85,0.2]
[1760359104780,7.24473961,193.9,193.85,7.96060239]
[1760359104981,7.24473961,193.9,193.86,0.7]
[1760359105477,7.24473961,193.91,193.86,0.7]
[1760359105697,7.24473961,193.91,193.86,5.85829896]
[1760359106893,7.24473961,193.92,193.86,13.10303857]
[1760359107090,0.69,193.97,193.88,7.24473961]
[1760359107309,7.24473961,193.94,193.89,0.51575635]
[1760359107507,7.24473961,193.94,193.89,1.21575635]
[1760359107690,7.24473961,193.94,193.9,5.15729757]
[1760359108120,12.88747274,193.99,193.91,0.7]
[1760359108410,7.24473961,193.95,193.9,12.40203718]
[1760359108721,7.24473961,193.91,193.86,0.51583617]
[1760359109213,7.24473961,193.92,193.87,0.7]
[1760359109517,7.24473961,193.93,193.88,0.7]
[1760359109719,10.87647521,194.0,193.9,12.40203718]
[1760359110012,7.24473961,193.96,193.9,12.40203718]
[1760359110216,20.8,193.97,193.9,12.40203718]
[1760359110391,28.04473961,193.97,193.91,7.24473961]
[1760359110580,7.24473961,193.96,193.9,12.40203718]
[1760359110786,7.24473961,193.95,193.9,5.15729757]
[1760359111002,5.15581489,193.96,193.9,5.15729757]
[1760359111402,7.24473961,193.95,193.9,12.40203718]
[1760359112195,7.24473961,193.95,193.9,13.10203718]
[1760359112703,7.24473961,193.95,193.89,5.67326327]
[1760359112704,7.93473961,193.94,193.89,5.67326327]
[1760359113019,7.24473961,193.95,193.89,13.61800288]
[1760359113306,21.49,193.96,193.89,26.51191179]
[1760359113516,7.24473961,193.96,193.9,7.94473961]
[1760359113908,7.24473961,193.96,193.91,5.15703161]
[1760359114228,0.69,193.95,193.89,5.67307914]
[1760359114390,0.69,193.95,193.89,13.61781875]
[1760359114391,7.93473961,193.95,193.89,13.61781875]
[1760359114692,5.15576043,193.96,193.9,7.24473961]
[1760359114693,12.40050004,193.96,193.9,7.24473961]
[1760359115306,5.15576043,193.96,193.9,7.24473961]
[1760359115504,12.40050004,193.96,193.91,5.15703161]
[1760359115814,13.09050004,193.96,193.91,5.15703161]
[1760359116022,0.69,193.96,193.91,13.10177122]
[1760359116334,0.7962132,194.01,193.93,7.24473961]
[1760359116620,0.7962132,194.01,193.94,0.51562338]
[1760359116809,7.24473961,193.99,193.94,0.51562338]
[1760359116990,7.93473961,193.99,193.94,0.51562338]
[1760359117190,7.93473961,193.99,193.94,1.21562338]
[1760359117490,13.08980339,193.99,193.94,6.37175496]
[1760359118101,0.09864368,193.95,193.94,5.15613158]
[1760359119793,0.09864368,193.95,193.94,5.85613158]
[1760359120190,0.09864368,193.95,193.94,13.10087119]
[1760359120395,0.09864368,193.95,193.94,13.61649457]
[1760359120896,0.09864368,193.95,193.94,6.37175496]
[1760359121217,0.09864368,193.95,193.94,13.61649457]
[1760359121815,0.09864368,193.95,193.94,6.37175496]
[1760359122204,0.09864368,193.95,193.94,13.61649457]
[1760359122596,0.09864368,193.95,193.94,0.51562338]
[1760359123613,0.09864368,193.95,193.94,5.67185726]
[1760359123810,0.09864368,193.95,193.94,6.37185726]
[1760359124296,0.09864368,193.95,193.94,5.67185726]
[1760359126798,7.34338329,193.95,193.92,5.67238672]
[1760359126998,0.09864368,193.95,193.92,5.67238672]
[1760359127306,0.09864368,193.95,193.92,6.39238672]
[1760359127307,7.34338329,193.95,193.92,6.39238672]
[1760359127616,7.24473961,193.94,193.92,5.67238672]
[1760359127998,0.09864368,193.95,193.93,0.72]
[1760359128303,0.09864368,193.95,193.94,0.51562338]
[1760359129915,0.09864368,193.95,193.89,0.72]
[1760359129916,8.06338329,193.95,193.9,5.67296852]
[1760359130213,7.34338329,193.95,193.91,0.72]
[1760359130413,7.34338329,193.95,193.92,0.51567656]
[1760359130915,0.09864368,193.95,193.93,0.72]
[1760359131121,0.09864368,193.95,193.94,0.51562338]
[1760359131815,0.09864368,193.95,193.94,5.67185726]
[1760359132020,0.09864368,193.95,193.94,6.39185726]
[1760359132515,0.09860267,193.97,193.95,31.67647521]
[1760359132697,0.09860267,193.97,193.96,17.12030983]
[1760359132900,0.09860267,193.97,193.96,28.71678504]
[1760359133700,0.09860267,193.97,193.96,19.35678504]
[1760359133901,0.09860267,193.97,193.96,33.87248724]
[1760359134110,0.09860267,193.97,193.96,26.47127242]
[1760359134313,0.09860267,193.97,193.96,27.19127242]
[1760359134601,0.09860267,193.97,193.96,26.47127242]
[1760359134809,0.09860267,193.97,193.96,0.51557022]
[1760359134996,8.06334228,193.97,193.93,5.15632983]
[1760359135201,7.24473961,193.95,193.93,5.15632983]
[1760359135417,7.24473961,193.94,193.93,5.15632983]
[1760359136200,7.24473961,193.95,193.93,5.15632983]
[1760359136731,7.24473961,193.95,193.92,5.67242262]
[1760359137232,7.24473961,193.96,193.92,5.67242262]
[1760359137436,5.68768305,193.96,193.92,5.67242262]
[1760359137728,4.96768305,193.95,193.92,5.67242262]
[1760359137910,0.10753813,193.93,193.92,5.67242262]
[1760359138918,0.10753813,193.93,193.92,0.51567656]
[1760359139121,0.10753813,193.93,193.91,0.51570316]
[1760359139323,5.68768305,193.92,193.9,0.51572975]
[1760359139524,5.68768305,193.92,193.85,0.2]
[1760359139525,5.68768305,193.91,193.85,0.2]
[1760359139708,4.96768305,193.89,193.86,0.51583617]
[1760359139904,20.90753813,193.93,193.86,5.15812084]
[1760359140098,20.90753813,193.93,193.86,5.87812084]
[1760359140303,0.10753813,193.93,193.87,0.51580956]
[1760359140623,4.96768305,193.91,193.87,0.51580956]
[1760359140928,4.96768305,193.89,193.87,0.51580956]
[1760359141225,4.96768305,193.9,193.87,0.51580956]
[1760359142226,5.68768305,193.91,193.88,5.15782958]
[1760359142811,0.10753813,193.93,193.88,5.15782958]
[1760359143101,5.68768305,193.91,193.88,5.15782958]
[1760359144439,4.96768305,193.9,193.88,5.15782958]
[1760359144811,0.72,193.91,193.88,5.15782958]
[1760359145006,5.07522118,193.93,193.89,1.23575635]
[1760359145213,5.79522118,193.93,193.89,79.71575635]
[1760359146023,0.10753813,193.93,193.9,5.68768305]
[1760359146218,0.10753813,193.93,193.91,1.23570316]
[1760359146521,0.10753813,193.93,193.92,10.12444872]
[1760359146706,0.10753813,193.93,193.92,31.08092393]
[1760359147036,0.10753813,193.93,193.92,0.72]
[1760359147334,0.10753813,193.93,193.92,10.08]
[1760359148012,0.10753813,193.93,193.92,0.72]
[1760359148214,0.10753813,193.93,193.92,10.08]
[1760359148517,0.10753813,193.93,193.92,5.87676567]
[1760359148730,0.10753813,193.93,193.92,5.15676567]
[1760359149139,0.10753813,193.93,193.92,5.67244223]
[1760359152327,0.10753813,193.93,193.92,84.87244223]
[1760359153827,0.10753813,193.93,193.92,99.91012528]
[1760359154032,0.10753813,193.93,193.92,90.55012528]
[1760359154232,0.10753813,193.93,193.92,99.91012528]
[1760359154541,0.10753813,193.93,193.92,84.87244223]
[1760359154839,5.72522118,193.93,193.92,79.71567656]
[1760359155041,5.72522118,193.93,193.92,79.2]
[1760359155223,5.72522118,193.93,193.91,79.2]
[1760359155425,5.61768305,193.92,193.91,79.2]
[1760359155620,5.61768305,193.92,193.87,5.15789427]
[1760359155621,5.61768305,193.92,193.87,79.2]
[1760359155822,0.65,193.91,193.87,79.2]
[1760359156041,4.96768305,193.91,193.87,85.06809291]
[1760359156540,0.10753813,193.93,193.88,15.03768305]
[1760359156731,0.10753813,193.93,193.89,5.15756356]
[1760359156925,5.07522118,193.93,193.89,5.86756356]
[1760359157124,5.07522118,193.93,193.89,18.76147247]
[1760359157633,4.96768305,193.93,193.89,18.76147247]
[1760359157944,0.10702624,193.9,193.89,18.76147247]
[1760359158331,0.10702624,193.9,193.89,18.05147247]
[1760359158649,0.10702624,193.9,193.89,5.15756356]
[1760359159826,0.10702624,193.9,193.89,5.86756356]
[1760359160444,0.10702624,193.9,193.89,5.67331991]
[1760359160826,0.10702624,193.9,193.89,15.72331991]
[1760359161236,0.10702624,193.9,193.89,5.67331991]
[1760359161558,5.07470929,193.9,193.89,5.15756356]
[1760359161851,5.07470929,193.9,193.88,5.15782958]
[1760359162351,0.10702624,193.9,193.89,0.51570314]
[1760359162739,5.72470929,193.9,193.87,5.15804067]
[1760359163242,0.10702624,193.9,193.87,5.15804067]
[1760359163560,0.10702624,193.9,193.88,0.51559672]
[1760359163849,0.10702624,193.9,193.89,5.15756356]
[1760359165244,5.07470929,193.9,193.89,5.15756356]
[1760359165632,0.10702624,193.9,193.89,5.15756356]
[1760359166451,10.88208364,193.9,193.85,0.2]
[1760359166655,4.96768305,193.86,193.85,0.2]
[1760359167069,5.61768305,193.86,193.85,0.2]
[1760359167571,0.65,193.88,193.85,0.2]
[1760359167735,0.50293738,193.89,193.85,0.2]
[1760359167736,2.04596079,193.86,193.85,0.2]
[1760359167935,2.69596079,193.86,193.85,0.2]
[1760359168663,7.85432249,193.86,193.85,0.2]
[1760359168844,2.69596079,193.86,193.85,0.2]
[1760359169162,7.85432249,193.86,193.85,0.2]
[1760359169348,0.50293738,193.88,193.85,0.2]
[1760359169658,2.69596079,193.86,193.85,0.2]
[1760359170240,2.04596079,193.86,193.85,0.2]
[1760359171263,0.65,193.87,193.85,0.2]
[1760359171450,2.04596079,193.86,193.85,0.2]
[1760359171967,0.50293738,193.89,193.85,0.2]
[1760359172150,2.04596079,193.89,193.86,5.1583617]
[1760359172459,2.04596079,193.89,193.86,5.67414476]
[1760359172659,2.04596079,193.88,193.86,5.67414476]
[1760359174153,2.04596079,193.89,193.86,5.67414476]
[1760359175338,0.10702624,193.9,193.85,0.2]
[1760359175339,2.04596079,193.87,193.85,0.2]
[1760359175539,2.69596079,193.86,193.85,0.2]
[1760359175866,7.85432249,193.86,193.85,0.2]
[1760359176043,7.85432249,193.86,193.8,0.2]
[1760359176237,0.50293738,193.85,193.8,0.2]
[1760359176467,2.04596079,193.81,193.8,0.2]
[1760359177160,2.69596079,193.81,193.8,0.2]
[1760359177662,7.85565327,193.81,193.8,0.2]
[1760359178178,7.96478713,193.81,193.8,0.2]
[1760359178543,2.15509465,193.81,193.8,0.2]
[1760359178864,7.96478713,193.81,193.8,0.2]
[1760359179172,16.14863029,193.81,193.8,0.2]
[1760359179351,25.77942467,193.79,193.78,0.2]
[1760359179552,30.93964965,193.79,193.78,0.2]
[1760359179766,31.58964965,193.79,193.78,0.2]
[1760359180247,31.58964965,193.79,193.67,4.97942467]
[1760359180248,49.46963678,193.79,193.67,0.71]
[1760359180444,4.97942467,193.73,193.67,5.87339124]
[1760359180645,4.97942467,193.72,193.68,1.22591587]
[1760359180849,4.97942467,193.72,193.69,0.71]
[1760359181356,4.97942467,193.7,193.67,0.71]
[1760359181979,4.97942467,193.71,193.68,0.71]
[1760359182875,0.50293738,193.74,193.67,18.58828143]
[1760359183056,4.97942467,193.72,193.69,0.7]
[1760359183762,4.97942467,193.71,193.68,5.1629524]
[1760359184157,4.97942467,193.7,193.68,5.1629524]
[1760359184363,1.20293738,193.74,193.66,0.7]
[1760359184578,1.20293738,193.74,193.66,5.86368893]
[1760359184881,4.97942467,193.71,193.66,5.86368893]
[1760359185055,4.97942467,193.71,193.67,0.7]
[1760359185254,4.97942467,193.7,193.67,0.7]
[1760359185672,4.97942467,193.68,193.65,0.51634223]
[1760359185954,4.97942467,193.67,193.65,1.21634223]
[1760359186160,4.97942467,193.68,193.66,0.7]
[1760359186761,4.97942467,193.68,193.65,5.68026476]
[1760359187162,4.97942467,193.68,193.65,6.38026476]
[1760359188182,4.97942467,193.68,193.66,0.66]
[1760359188383,26.66242989,193.71,193.66,0.66]
[1760359188688,4.97942467,193.68,193.65,5.68026476]
[1760359188979,4.97942467,193.68,193.65,6.34026476]
[1760359189957,4.97942467,193.68,193.65,5.68026476]
[1760359190362,4.97942467,193.66,193.64,5.16420158]
[1760359190587,4.97942467,193.66,193.64,5.82420158]
[1760359190760,4.97942467,193.66,193.65,0.66]
[1760359191084,4.97942467,193.67,193.65,0.66]
[1760359191288,0.50293738,193.71,193.66,0.66]
[1760359191472,4.97942467,193.71,193.67,1.17634223]
[1760359191782,4.97942467,193.71,193.67,0.51634223]
[1760359192167,4.97942467,193.71,193.67,1.17634223]
[1760359193375,1.22293738,193.76,193.68,0.66]
[1760359193581,4.97942467,193.73,193.68,0.66]
[1760359193766,4.97942467,193.71,193.67,5.67971379]
[1760359194382,4.97942467,193.71,193.67,6.33971379]
[1760359194591,4.97942467,193.71,193.67,5.82337156]
[1760359194961,0.72,193.73,193.68,0.1492519]
[1760359195279,4.97942467,193.73,193.69,0.66]
[1760359195478,4.97942467,193.72,193.7,5.16262261]
[1760359196997,0.72,193.74,193.7,5.16262261]
[1760359197169,4.97942467,193.72,193.69,5.16288915]
[1760359197689,4.97942467,193.7,193.68,5.16312715]
[1760359197997,5.08396323,193.7,193.68,5.82312715]
[1760359198488,0.10453856,193.7,193.69,0.94766648]
[1760359199203,0.10453856,193.7,193.69,6.11055563]
[1760359199763,7.37102063,193.7,193.67,5.45094485]
[1760359199963,7.37102063,193.7,193.67,6.11094485]
[1760359200402,7.37102063,193.7,193.65,0.28784052]
[1760359200403,7.26648207,193.68,193.65,0.28784052]
[1760359200691,0.72,193.69,193.61,13.19979085]
[1760359200902,7.26648207,193.64,193.61,33.99979085]
[1760359201098,7.26648207,193.65,193.62,0.66]
[1760359201486,0.10453856,193.7,193.64,3.20373565]
[1760359201687,0.10453856,193.7,193.67,3.20373565]
[1760359201994,0.10453856,193.7,193.68,0.94776618]
[1760359202169,3.20373565,193.69,193.66,0.28776619]
[1760359202366,3.20373565,193.69,193.66,0.94776619]
[1760359202570,3.30827421,193.7,193.66,0.28776619]
[1760359202799,3.30827421,193.7,193.67,0.66]
[1760359203305,0.10453856,193.7,193.68,4.15147212]
[1760359203483,0.10453856,193.7,193.69,5.82288915]
[1760359204079,0.10453856,193.7,193.69,5.16288915]
[1760359204494,0.10453856,193.7,193.68,0.28773647]
[1760359204695,0.10453856,193.7,193.68,6.11083358]
[1760359205584,0.10453856,193.7,193.68,5.45083358]
[1760359205984,3.92373565,193.69,193.68,0.28773647]
[1760359206198,3.92373565,193.69,193.64,5.45189277]
[1760359206480,3.20373565,193.69,193.64,5.45189277]
[1760359206688,0.72,193.69,193.64,5.45189277]
[1760359206886,3.20373565,193.68,193.64,5.45189277]
[1760359207105,3.20373565,193.68,193.64,6.11189277]
[1760359208107,0.72,193.69,193.64,6.11189277]
[1760359208108,3.92373565,193.69,193.64,6.11189277]
[1760359209113,0.10453856,193.7,193.65,0.66]
[1760359209302,3.30827421,193.7,193.66,0.28777004]
[1760359209606,3.30827421,193.7,193.66,0.94777004]
[1760359210012,0.10453856,193.7,193.66,0.94777004]
[1760359210309,3.30827421,193.7,193.66,0.94777004]
[1760359211223,3.30827421,193.7,193.66,6.11127712]
[1760359211790,3.92373565,193.69,193.66,5.45127712]
[1760359212188,3.20373565,193.69,193.66,5.45127712]
[1760359212386,0.10453856,193.7,193.67,0.66]
[1760359212591,0.10453856,193.7,193.68,4.19158719]
[1760359212889,0.10453856,193.7,193.69,3.90373565]
[1760359213990,0.10453856,193.7,193.69,0.7]
[1760359214406,0.10453856,193.7,193.69,5.86288915]
[1760359214909,3.30827421,193.7,193.68,0.28785154]
[1760359215214,0.67,193.69,193.64,5.45185747]
[1760359215385,3.20373565,193.65,193.62,0.98801844]
[1760359215585,3.20373565,193.65,193.62,6.15272332]
[1760359217799,3.20373565,193.65,193.62,0.98801844]
[1760359218000,0.09378704,193.63,193.62,0.98801844]
[1760359218211,0.09378704,193.63,193.62,6.15277414]
[1760359221999,0.09378704,193.63,193.62,0.98801844]
[1760359222205,3.96752269,193.63,193.6,0.2]
[1760359222410,3.20373565,193.61,193.6,0.2]
[1760359222933,3.87373565,193.61,193.6,0.2]
[1760359223097,3.20373565,193.61,193.6,0.2]
[1760359223618,3.87373565,193.61,193.6,0.2]
[1760359223804,9.68438591,193.61,193.6,0.2]
[1760359226197,9.68438591,193.61,193.54,12.91719029]
[1760359226198,9.68438591,193.61,193.49,1.18847823]
[1760359226428,3.20373565,193.53,193.5,5.16795865]
[1760359226730,3.20373565,193.57,193.51,4.19272116]
[1760359226928,3.20373565,193.57,193.52,0.7]
[1760359227109,3.20373565,193.57,193.53,0.7]
[1760359227818,3.20373565,193.55,193.51,0.28898551]
[1760359228023,3.20373565,193.54,193.5,5.86777056]
[1760359228418,3.20373565,193.54,193.5,6.15671917]
[1760359229022,3.20373565,193.54,193.51,0.7]
[1760359230233,20.8,193.59,193.52,4.19262849]
[1760359230433,3.20373565,193.61,193.55,3.20373565]
[1760359230602,3.34425974,193.62,193.56,0.98854815]
[1760359230806,3.20373565,193.61,193.56,0.98854815]
[1760359231028,3.20373565,193.6,193.56,0.28854815]
[1760359231731,3.20373565,193.6,193.56,0.7]
[1760359232134,3.20373565,193.58,193.56,5.16617258]
[1760359232315,3.85373565,193.58,193.55,5.45512346]
[1760359232504,3.20373565,193.56,193.51,5.45629475]
[1760359232705,3.20373565,193.53,193.51,0.7]
[1760359232910,3.20373565,193.55,193.51,0.7]
[1760359233113,3.20373565,193.54,193.49,0.48902326]
[1760359233420,3.20373565,193.54,193.5,0.7]
[1760359233827,3.20373565,193.54,193.5,5.86773472]
[1760359234227,3.20373565,193.53,193.5,5.86773472]
[1760359234812,3.20373565,193.54,193.5,5.86773472]
[1760359236509,3.20373565,193.51,193.49,0.2]
[1760359236708,3.20373565,193.5,193.49,0.2]
[1760359237229,0.64586132,193.54,193.49,0.9]
[1760359237548,3.20373565,193.52,193.49,0.2]
[1760359237906,0.11224602,193.5,193.49,0.2]
[1760359238416,0.11224602,193.5,193.49,5.36822574]
[1760359239342,3.96598167,193.5,193.49,0.2]
[1760359239909,3.31598167,193.5,193.49,0.2]
[1760359241436,0.76224602,193.5,193.49,0.2]
[1760359241614,9.13394032,193.5,193.49,0.2]
[1760359241816,3.96598167,193.5,193.49,0.2]
[1760359242607,0.11224602,193.5,193.49,0.2]
[1760359242941,3.31598167,193.5,193.49,0.2]
[1760359243929,0.11224602,193.5,193.49,0.2]
[1760359244129,3.31598167,193.5,193.49,0.2]
[1760359245130,3.97598167,193.5,193.49,0.2]
[1760359245328,3.31598167,193.5,193.49,0.2]
[1760359247223,24.77598167,193.5,193.49,0.2]
[1760359247627,29.94394032,193.5,193.49,0.2]
[1760359247830,21.57224602,193.5,193.49,0.2]
[1760359248025,24.77598167,193.5,193.49,0.2]
[1760359249338,29.94394032,193.5,193.49,0.2]
[1760359250040,3.31598167,193.5,193.49,0.2]
[1760359251028,9.80993515,193.5,193.49,0.2]
[1760359251245,9.12993515,193.5,193.49,0.2]
[1760359251428,9.80993515,193.5,193.49,0.2]
[1760359251621,21.55824085,193.5,193.49,0.2]
[1760359251941,24.7619765,193.5,193.49,0.2]
[1760359252138,30.60993515,193.5,193.49,0.2]
[1760359253440,30.60993515,193.5,193.48,0.2]
[1760359253441,39.94993515,193.5,193.48,0.2]
[1760359253628,8.37196139,193.49,193.48,0.2]
[1760359254043,9.05196139,193.49,193.48,0.2]
[1760359254427,11.75292502,193.49,193.48,0.2]
[1760359255152,28.66918937,193.49,193.48,0.2]
[1760359255455,2.70096363,193.49,193.43,3.20373565]
[1760359255631,2.70096363,193.49,193.46,5.16902718]
[1760359255943,2.70096363,193.49,193.47,0.28925262]
[1760359256946,0.11224602,193.5,193.47,0.28925262]
[1760359257528,2.69976766,193.52,193.48,0.68]
[1760359257727,2.69976766,193.52,193.5,5.16795865]
[1760359257954,0.11037274,193.49,193.47,0.96900745]
[1760359258129,0.11037274,193.49,193.48,0.68]
[1760359259740,0.11037274,193.49,193.48,5.84849286]
[1760359260748,0.11037274,193.49,193.46,0.28917486]
[1760359260749,2.16369487,193.49,193.46,0.28917486]
[1760359260947,2.05332213,193.47,193.46,0.28917486]
[1760359261127,2.05332213,193.47,193.43,0.28932341]
[1760359261329,2.05332213,193.44,193.43,0.28932341]
[1760359261525,2.05332213,193.44,193.41,0.88]
[1760359261831,2.05332213,193.46,193.42,0.28943407]
[1760359262056,2.05332213,193.43,193.41,5.65976977]
[1760359262258,2.05332213,193.43,193.42,0.68]
[1760359262634,0.68,193.48,193.42,0.68]
[1760359262961,0.11037274,193.49,193.43,0.28940414]
[1760359263130,2.05332213,193.48,193.44,0.68]
[1760359263342,2.05332213,193.47,193.45,0.68]
[1760359263545,0.11037274,193.49,193.43,0.28940414]
[1760359263745,2.05332213,193.48,193.46,5.84881166]
[1760359263971,2.16369487,193.49,193.47,0.68]
[1760359264153,0.11037274,193.49,193.46,5.16881166]
[1760359264355,0.11037274,193.49,193.48,0.68]
[1760359264577,0.11037274,193.49,193.48,34.40979734]
[1760359264755,0.1052285,193.54,193.51,20.8]
[1760359264954,0.1052285,193.54,193.52,11.68224088]
[1760359265158,0.1052285,193.54,193.52,9.62891875]
[1760359265359,0.1052285,193.54,193.52,0.96891875]
[1760359265841,0.1052285,193.54,193.52,6.1363433]
[1760359266046,0.1052285,193.54,193.52,8.18966543]
[1760359266248,0.1052285,193.54,193.52,6.1363433]
[1760359266463,0.1052285,193.54,193.52,0.96891875]
[1760359266663,0.1052285,193.54,193.52,6.1363433]
[1760359267565,0.1052285,193.54,193.52,8.18966543]
[1760359267754,0.1052285,193.54,193.52,19.06614064]
[1760359268271,0.1052285,193.54,193.52,28.40614064]
[1760359268469,1e-08,193.54,193.53,10.87647521]
[1760359268771,1e-08,193.54,193.53,13.60979734]
[1760359269150,1e-08,193.54,193.53,22.94979734]
[1760359269980,1e-08,193.56,193.55,31.67647521]
[1760359270149,1e-08,193.58,193.56,10.87647521]
[1760359270354,1e-08,193.58,193.57,11.68190719]
[1760359270668,1e-08,193.58,193.57,12.36190719]
[1760359271055,1e-08,193.58,193.57,3.02190719]
[1760359271257,1e-08,193.58,193.57,23.2383824]
[1760359271459,2.73332213,193.7,193.61,31.67647521]
[1760359271659,2.69744048,193.69,193.65,2.05332213]
[1760359271857,3.37744048,193.69,193.65,9.34]
[1760359272055,5.43076261,193.69,193.65,9.62748065]
[1760359272257,2.69744048,193.69,193.63,5.4523578]
[1760359272482,2.69744048,193.69,193.65,0.66]
[1760359272675,2.69744048,193.69,193.65,0.94797767]